Cogmind - Beta 10.2 *** ADVENTURER MODE // 2021.06.03 @ 13:21:01 Player: debtmaster Result: Destroyed by as-84233 with Assembled Heavy Rifle Performance ------------- Evolutions (0) 0 Regions Visited (4) 800 Robots Destroyed (11) 55 Value Destroyed (285) 285 Prototype IDs (3) 60 Alien Tech Used (0) 0 Bonus (300) 300 TOTAL SCORE: 1500 Bonus ------- Aligned with FarCom 300 Cogmind --------- Core Integrity 0/250 Matter 300/300 Energy 84/100 System Corruption 5% Temperature Cool (0) Movement Core (350) Ox6 Location -9/Mines Parts ------- > --- POWER (1) -------- (None) > --- PROPULSION (2) --- (None) > --- UTILITY (2) ------ Large Storage Unit > --- WEAPON (2) ------- Mace Makeshift Spear > --- INVENTORY (10) --- Light Ion Engine Light Ion Engine Compact Wheel High-capacity Matter Pod (200) Experimental Sensor Array Signal Interpreter Tractor Beam Spread Laser Datajack Peak State ------------ > --- POWER ------------ Ion Engine > --- PROPULSION ------- Wheel Compact Wheel > --- UTILITY ---------- Large Storage Unit Trap Reconfigurator > --- WEAPON ----------- Spread Laser Makeshift Spear > --- INVENTORY -------- Light Ion Engine Light Ion Engine Compact Wheel Medium Matter Pod Signal Interpreter Tractor Beam Datajack Mace Mace [Rating: 20] Favorites ----------- Power Ion Engine Engine Ion Engine Propulsion Compact Wheel Wheel Compact Wheel Utility Large Storage Unit Device ECM Suite Storage Large Storage Unit Protection Power Shielding Weapon Mace Energy Gun Spread Laser Ballistic Gun Assault Rifle Impact Weapon Mace Slashing Weapon Mining Claw Piercing Weapon Makeshift Spear Special Melee Weapon Datajack Build | -11 -10 -10 -10 -9 ------- Run | Scr Mat Min Exi Min Slots Evolved . | . . . . . Power . | . . . . . Propulsion . | . . . . . Utility . | . . . . . Weapon . | . . . . . Parts Attached 28 | 4 19 2 1 2 Power 3 | 1 2 . . . Engine 3 | 1 2 . . . Core . | . . . . . Reactor . | . . . . . Propulsion 4 | 2 2 . . . Treads . | . . . . . Leg . | . . . . . Wheel 4 | 2 2 . . . Hover . | . . . . . Flight . | . . . . . Utility 7 | 1 5 . 1 . Device 3 | . 2 . 1 . Storage 3 | 1 2 . . . Processor . | . . . . . Hackware . | . . . . . Protection 1 | . 1 . . . Artifact . | . . . . . Weapon 14 | . 10 2 . 2 Energy Gun 2 | . 1 1 . . Energy Cannon . | . . . . . Ballistic Gun 3 | . 3 . . . Ballistic Cannon . | . . . . . Launcher . | . . . . . Special Weapon . | . . . . . Impact Weapon 5 | . 3 . . 2 Slashing Weapon 2 | . 2 . . . Piercing Weapon 1 | . . 1 . . Special Melee Weapon 1 | . 1 . . . Unidentified Prototypes 1 | . . . 1 . Parts Lost 7 | . 2 . . 5 Power 2 | . 1 . . 1 Propulsion 3 | . 1 . . 2 Utility 1 | . . . . 1 Weapon 1 | . . . . 1 Highest Loss Streak 5 | . 1 . . 5 Average Slot Usage (%) 93 | . 95 85 93 97 Engine 13 | . 13 14 14 12 Wheel 27 | . 28 28 28 26 Device 8 | . 10 . 7 14 Storage 14 | . 14 14 14 14 Energy Gun 6 | . 2 7 14 11 Ballistic Gun 6 | . 11 . . . Impact Weapon 6 | . 8 19 . 2 Slashing Weapon 1 | . 2 . . . Piercing Weapon 5 | . . 1 14 14 Special Melee Weapon 1 | . 2 . . . Naked Turns . | . . . . . Heaviest Build 27 | 7 27 26 27 27 Greatest Support 32 | 26 32 26 26 26 Greatest Overweight (x) 1 | . 1 . 1 1 Average Overweight (x) . | . . . . . Largest Inventory Capacity 10 | 6 10 10 10 10 Average Capacity 8 | 5 7 10 10 10 Most Carried 10 | 4 8 9 10 10 Average Carried 7 | 2 5 8 9 9 Final Capacity 10 | 6 10 10 10 10 Final Carried 9 | 3 8 9 9 9 Class Distribution -------------------- 100% | Mutant Dominant Class ---------------- Mutant | -10/Materials Mutant | -10/Mines Mutant | -10/Exiles Mutant | -9/Mines Resources | -11 -10 -10 -10 -9 ----------- Run | Scr Mat Min Exi Min Matter Collected 731 | 218 433 . 60 20 Remotely . | . . . . . Salvage Created 424 | . 362 . . 62 Parts 16 | . 16 . . . Haulers Intercepted 1 | . 1 . . . Recyclers Shooed . | . . . . . Parts Field Recycled . | . . . . . Retrieved Matter . | . . . . . Parts Self-Destructed . | . . . . . Prevented . | . . . . . Kills | -11 -10 -10 -10 -9 ------- Run | Scr Mat Min Exi Min Combat Hostiles Destroyed 10 | . 6 . . 4 Melee 6 | . 2 . . 4 Guns 4 | . 4 . . . Classes Destroyed 5 | . 4 . . 1 Builder 1 | . 1 . . . Hauler 1 | . 1 . . . Watcher 3 | . 3 . . . Grunt 6 | . 6 . . . Assembled 4 | . . . . 4 Best Kill Streak 4 | . 3 . . 4 Combat Bots Only 4 | . 2 . . 4 Max Kills in Single Turn 1 | . 1 . . 1 Gunslinging . | . . . . . Exploded . | . . . . . Melee 1 | . 1 . . 1 Uniques/NPCs Destroyed . | . . . . . Combat | -11 -10 -10 -10 -9 -------- Run | Scr Mat Min Exi Min Damage Taken 912 | . 509 . . 403 Core 256 | . 152 . . 104 Absorbed by Shields . | . . . . . Core Remaining (%) 100 | 100 . . . . Volleys Fired 33 | . 33 . . . Largest 2 | . 2 . . . Hottest 65 | . 65 . . . Shots Fired 63 | . 63 . . . Gun 63 | . 63 . . . Cannon . | . . . . . Launcher . | . . . . . Special . | . . . . . Kinetic 62 | . 62 . . . Thermal 1 | . 1 . . . Explosive . | . . . . . Electromagnetic . | . . . . . Robot Hit Streak 20 | . 20 . . . Robot Miss Streak 2 | . 2 . . . Penetration Max . | . . . . . Secondary Targets 1 | . 1 . . . Max Gunslinging Chain 1 | . 1 . . . Shots Hit Robots 72 | . 65 . . 7 Core Hits 26 | . 22 . . 4 Critical Hits 1 | . 1 . . . Critical Kills . | . . . . . Critical Parts Destroyed 1 | . 1 . . . Melee Attacks 35 | . 25 . . 10 Impact 24 | . 24 . . . Slashing . | . . . . . Piercing 10 | . . . . 10 Sneak Attacks 3 | . 3 . . . Combat Hostiles . | . . . . . Follow-up Attacks 2 | . 2 . . . Damage Inflicted 1271 | . 1015 . . 256 Guns 472 | . 472 . . . Cannons . | . . . . . Explosions . | . . . . . Melee 799 | . 543 . . 256 Ramming . | . . . . . Kinetic 457 | . 457 . . . Thermal 15 | . 15 . . . Explosive . | . . . . . Electromagnetic . | . . . . . Impact 543 | . 543 . . . Slashing . | . . . . . Piercing 256 | . . . . 256 Highest Corruption 3 | . . . . 3 Average Corruption 3 | . . . . 3 Corruption Purged . | . . . . . Overload Shots . | . . . . . Overflow Damage 31 | . 31 . . . Projectiles . | . . . . . Explosions . | . . . . . Melee 31 | . 31 . . . Knockbacks 2 | . 2 . . . Impact 2 | . 2 . . . Kinetic . | . . . . . Secondary . | . . . . . Self-Inflicted Damage . | . . . . . Shots . | . . . . . Rammed . | . . . . . Targets Rammed . | . . . . . Kicked . | . . . . . Crushed . | . . . . . Highest Temperature 24 | . 24 . . 2 Average Temperature 8 | . 8 . . 2 Received Heat Transfer 421 | . 381 . . 40 Siege Activations . | . . . . . Robots Corrupted . | . . . . . Combat Hostiles . | . . . . . Parts Fried 6 | . 6 . . . Impact Corruptions 3 | . 3 . . . Robots Melted . | . . . . . Combat Hostiles . | . . . . . Parts Melted . | . . . . . Heat Transferred 20 | . 20 . . . Parts Sabotaged . | . . . . . Parts Stolen . | . . . . . Parts Stripped . | . . . . . Power Chain Reactions . | . . . . . Missiles Intercepted . | . . . . . Alert | -11 -10 -10 -10 -9 ------- Run | Scr Mat Min Exi Min Peak Influence 133 | . 133 . . . Initial . | . . . . . Average 43 | . 61 . . . Maximum Alert Level . | . . . . . Low Security (%) 100 | 100 100 100 . 100 Level 1 . | . . . . . Level 2 . | . . . . . Level 3 . | . . . . . Level 4 . | . . . . . Level 5 . | . . . . . High Security . | . . . . . Max Security . | . . . . . Squads Dispatched . | . . . . . Investigation . | . . . . . Extermination . | . . . . . Reinforcement . | . . . . . Assault . | . . . . . Garrison . | . . . . . Intercept . | . . . . . Construction Impeded . | . . . . . Haulers Reinforced . | . . . . . Stealth | -11 -10 -10 -10 -9 --------- Run | Scr Mat Min Exi Min Distress Signals . | . . . . . Communications Jammed . | . . . . . Distress Signals . | . . . . . Times Spotted 35 | . 15 . . 20 Peak Tracking Total 18 | . 5 . . 18 Tactical Retreats 2 | . 1 . . 1 Traps | -11 -10 -10 -10 -9 ------- Run | Scr Mat Min Exi Min Traps Triggered . | . . . . . Indirectly . | . . . . . Trap Hack Attempts . | . . . . . Triggered . | . . . . . Disarmed . | . . . . . Reprogrammed 4 | . 4 . . . Reused 2 | . 2 . . . Traps Extracted . | . . . . . Installed . | . . . . . Triggered 2 | . 2 . . . Machines | -11 -10 -10 -10 -9 ---------- Run | Scr Mat Min Exi Min Machines Disabled . | . . . . . Max in Single Turn . | . . . . . Machines Sabotaged . | . . . . . Garrisons Compromised . | . . . . . Overloaded Fab Kills . | . . . . . Fab Network Shutdowns . | . . . . . Hacking | -11 -10 -10 -10 -9 --------- Run | Scr Mat Min Exi Min Machines Accessed 7 | . 7 . . . Terminals 7 | . 7 . . . Fabricators . | . . . . . Repair Stations . | . . . . . Recycling Units . | . . . . . Scanalyzers . | . . . . . Garrison Access . | . . . . . Total Hacks 21 | . 21 . . . Successful 14 | . 14 . . . Failed 7 | . 7 . . . Catastrophic . | . . . . . Database Lockouts . | . . . . . Manual 1 | . . . 1 . Terminals 21 | . 21 . . . Fabricators . | . . . . . Repair Stations . | . . . . . Recycling Units . | . . . . . Scanalyzers . | . . . . . Garrison Access . | . . . . . Terminal Hacks 14 | . 14 . . . Prototype ID Bank 1 | . 1 . . . Branch Access Points 1 | . 1 . . . Machine Index 1 | . 1 . . . Alert Level 1 | . 1 . . . Locate Traps 1 | . 1 . . . Reprogram Traps 1 | . 1 . . . Dispatch Records 1 | . 1 . . . Maintenance Status 1 | . 1 . . . Patrol Status 1 | . 1 . . . Transport Status 1 | . 1 . . . Investigation Status 1 | . 1 . . . Recall Reinforcements 1 | . 1 . . . Registered Components 1 | . 1 . . . Zone Layout 1 | . 1 . . . Fabricator Hacks . | . . . . . Repair Station Hacks . | . . . . . Recycling Unit Hacks . | . . . . . Scanalyzer . | . . . . . Garrison Access Hacks . | . . . . . Unauthorized Hacks . | . . . . . Terminals . | . . . . . Fabricators . | . . . . . Repair Stations . | . . . . . Recycling Units . | . . . . . Scanalyzers . | . . . . . Garrison Access . | . . . . . Data Cores Recovered . | . . . . . Used . | . . . . . Hacking Detections 5 | . 5 . . . Full Trace Events . | . . . . . Feedback Events . | . . . . . Feedback Blocked . | . . . . . Robot Schematics Acquired . | . . . . . Robots Built . | . . . . . Matter . | . . . . . Time . | . . . . . Total Robot Build Rating . | . . . . . Part Schematics Acquired . | . . . . . Parts Built . | . . . . . Matter . | . . . . . Time . | . . . . . Total Part Build Rating . | . . . . . Parts Repaired . | . . . . . Time . | . . . . . Parts Recycled . | . . . . . Recycled Matter . | . . . . . Retrieved Matter . | . . . . . Retrieved Components . | . . . . . Parts Scanalyzed . | . . . . . Part Schematics Acquired . | . . . . . Parts Damaged . | . . . . . Bothacking | -11 -10 -10 -10 -9 ------------ Run | Scr Mat Min Exi Min Used RIF Installer . | . . . . . Robots Hacked 1 | . 1 . . . Non-combat 1 | . 1 . . . Combat . | . . . . . Robot Hacks Applied 1 | . 1 . . . parse_system 1 | . 1 . . . Relay Couplers Released . | . . . . . Robots Rewired . | . . . . . Allies Hacked . | . . . . . Hacks Repelled . | . . . . . Allies | -11 -10 -10 -10 -9 -------- Run | Scr Mat Min Exi Min Total Allies . | . . . . . Largest Group . | . . . . . Highest-Rated Group . | . . . . . Highest-Rated Ally . | . . . . . Total Orders . | . . . . . Ally Attacks . | . . . . . Total Damage . | . . . . . Kills . | . . . . . Allies Corrupted . | . . . . . Allies Melted . | . . . . . Intel | -11 -10 -10 -10 -9 ------- Run | Scr Mat Min Exi Min Robot Analysis Total . | . . . . . Derelict Logs Recovered 2 | . . 2 . . Drone Launches . | . . . . . Drone Recoveries . | . . . . . Exploration | -11 -10 -10 -10 -9 ------------- Run | Scr Mat Min Exi Min Turns Passed 1634 | 70 828 182 458 96 Spaces Moved 1438 | 50 642 198 476 72 Core 13 | 13 . . . . Treads . | . . . . . Legs . | . . . . . Wheels 1425 | 37 642 198 476 72 Hover . | . . . . . Flight . | . . . . . Fastest Speed 50 | 50 90 90 90 90 Average Speed 92 | 79 90 90 95 100 Slowest Speed 110 | 90 110 90 100 110 Overloaded Moves . | . . . . . Propulsion Burnouts . | . . . . . Robots Hopped . | . . . . . Cave-ins Triggered . | . . . . . Exploration Rate (%) 52 | 5 91 57 79 28 Regions Visited 4 Branch Regions 3 Pre-discovered Areas . | . . . . . Known Exits Taken 2 | . 1 . 1 . Unknown Exits Taken 2 | 1 . 1 . . Scrap Searched . | . . . . . Spaces Dug . | . . . . . Terrain Destroyed . | . . . . . Melee . | . . . . . Projectile . | . . . . . AOE . | . . . . . Terrain Rammed . | . . . . . Walls Destroyed . | . . . . . Machines Disabled . | . . . . . Actions | -11 -10 -10 -10 -9 --------- Run | Scr Mat Min Exi Min Total 1643 | 80 795 200 483 85 Wait 75 | 20 55 . . . Move 1434 | 49 641 197 475 72 Hop . | . . . . . Pick Up 28 | 7 15 1 4 1 Fast Attach 3 | . 3 . . . Attach 12 | 4 6 . 1 1 Detach . | . . . . . Swap 13 | . 10 2 . 1 Drop 13 | . 10 . 3 . Fire 33 | . 33 . . . Melee 32 | . 22 . . 10 Ram . | . . . . . Kick . | . . . . . Crush . | . . . . . Escape Stasis . | . . . . . Rewire . | . . . . . Trap . | . . . . . Miscellaneous . | . . . . . Route ------- -11/Scrapyard -10/Materials (discovered 4 exits: [*Mat x2] / *Min x2) -10/Mines -10/Exiles (discovered 2 exits: *Min x2) -9/Mines History --------- Turn | Location | Event 5 | -11/Scrapyard | Discovered new exit (range 15) 71 | -11/Scrapyard | Entered Materials 267 | -10/Materials | Discovered new exit (range 16) 316 | -10/Materials | Build established: Mutant 480 | -10/Materials | Identified exit to Mines 758 | -10/Materials | Core integrity fell below 50% 800 | -10/Materials | Discovered new exit (range 8) 899 | -10/Materials | Entered Mines 973 | -10/Mines | Learned Materials terminal intel 1063 | -10/Mines | A weapon hastily lodged in a ceiling crevice suddenly fell to the ground 1077 | -10/Mines | Deemed a non-threat by the Exiles lab entrance 1077 | -10/Mines | Discovered new exit (range 5) 1081 | -10/Mines | Entered Exiles 1082 | -10/Exiles | Identified exit to Mines 1105 | -10/Exiles | Met 8R-AWN 1119 | -10/Exiles | Met EX-HEX 1163 | -10/Exiles | Met EX-DEC 1199 | -10/Exiles | Visited The Gauntlet 1254 | -10/Exiles | Met EX-BIN 1267 | -10/Exiles | Aligned with FarCom system 1268 | -10/Exiles | Given EX-Vault access code 1289 | -10/Exiles | Opened EX-Vault 1295 | -10/Exiles | Found Prototype Device 1296 | -10/Exiles | Identified Trap Reconfigurator 1318 | -10/Exiles | Warned to stay clear of 0b10 Research branches 1539 | -10/Exiles | Left Exiles lab with Trap Reconfigurator 1539 | -10/Exiles | Entered Mines 1595 | -9/Mines | Found a damaged Exp. Sensor Array with a note attached 1597 | -9/Mines | Met a Derelict bent on vengeance 1597 | -9/Mines | Found Prototype Device 1600 | -9/Mines | Assembled infested the area 1628 | -9/Mines | Core integrity fell below 20% 1635 | -9/Mines | Destroyed by as-84233 with Assembled Heavy Rifle Last Messages --------------- doesn't do us much good if we can't spot those areas until they're on top of us... With this we can! Deliver it to Megawrench for repairs then we'll never be afraid of an ambush while sneaking around Materials again, ha." Acquired Prototype Device. ALERT: Infestation in the mines, dispatching Demolisher response squad. as-39017 destroyed. as-19235 destroyed. Acquired 10 matter. as-73152 destroyed. Ion Engine destroyed. Wheel destroyed. as-48473 destroyed. Mace destroyed. Com. Wheel destroyed. System corrupted by crushing effect (+1). System corrupted by crushing effect (+2). Acquired 10 matter. Trap Reconfigurator destroyed. System corrupted by crushing effect (+2). Map ----- +----------------------------------------------------+ | ##??# ????????????????????????????????????????? | | ## ????????????????????????????????????????? | | ????????????????????????????????????????? | | ?????????????????????????????????????????? | | ??????????????????????????????????????????? | | # #??????????????????????????????????????????? | | ? ##?????????????????????????????????????????? | | ? #?????????????????????????????????????????? | | ?# #?????????????????????????????????????????? | | ## #??????????????????????????????????????????? | | # #??????????????????????????????????????????? | | #???????? #????????????????????????????????? | | ######??? #????????????????????????????????? | | ## ##?# #????????????????????????????????? | | ### #????????????????????????????????? | | ## #????????????????????????????????? | | ## #???????????????????? ???????????? | | # ## # #??????????????????? ???????????? | | ###### ######???????????? ??????????? | | #????## ##?????????? ??????????? | | #?????# #????????? ??????????? | | #?????# #??????? #?????????? | | #?????# #?????? #??????????? | | #?????# ####### a #??????????? | | #?????# %aaa #?????????? | | #?????# %@a #?????????? | | ####??## ####### #??????????? | | #???###### ##???????? #???????????? | | ##????????# ##??????????? #???????????? | | ##?????????# ##?????????????? #???????????? | | ##??????????## ##????????????????? #???????????? | | #????????????####???????????????????? #??????????? | | #????????????????????????????????????????????????? | | ?????????????????????????????????????????????????? | | ?????????????????????????????????????????????????? | | ?????????????????????????????????????????????????? | | ?????????????????????????????????????????????????? | | ?????????????????????????????????????????????????? | | ?????????????????????????????????????????????????? | | ?????????????????????????????????????????????????? | | ?????????????????????????????????????????????????? | | ?????????????????????????????????????????????????? | | | | | | | | | | | | | | | | | +----------------------------------------------------+ Best States ------------- Heat Dissipation 25 Energy Generation 10 Energy Capacity 250 Matter Stores 300 Matter Capacity 300 Sight Range 16 Terrain Scan Density 10 ECM Strength 1 Resistance: KI 20 Resistance: TH 20 Resistance: EX 20 Resistance: EM 20 Resistance: I 20 Resistance: S 20 Resistance: P 20 Power Shielding 33 Evasion (%) 50 Offensive Hacking 10 Item Schematics ----------------- None Robot Schematics ------------------ None Fabricated ------------ Nothing Alien Tech Used ----------------- None Achievements -------------- None Challenges ------------ None Game ------ Seed SniperHellfireTriangulator Manual? 0 Play Time 00:32:10 Cumulative 8.0 hours Start 2021.06.03 @ 12:48:20 End 2021.06.03 @ 13:21:01 Sessions 1 Manual Loads 0 Difficulty Adventurer Special Mode None Game No. 15 Rogue 0 Adventurer 15 Explorer 0 Win Type - Total 0 Types 0/0/0/0/0/0/0/0/0 Lore% 19 Gallery% 16 Achievement% 16 Wizard Run 0 Options --------- ASCII 0 Keyboard 0 Movement Mouse Keybinds 0 Fullscreen 1 Font 18/SmallcapsGlow Map View 76x50 Tactical HUD 0 Map Filters NONE Filters NONE Steam 1 RUN: 78c74fea-eba2-4f52-86bd-9b1c89f2692f